fUSD/lending_fUSD_20260501
["ID","MTS","AMOUNT","RATE_DAILY","PERIOD"]
[421430756,1777638441000,-273.31471758,8.292e-05,2]
[421430748,1777638441000,-500.0,8.292e-05,2]
[421430755,1777638441000,-430.00000001,8.292e-05,2]
[421430754,1777638441000,-382.52350244,8.292e-05,2]
[421430757,1777638441000,-501.09189769,8.292e-05,2]
[421430759,1777638441000,-7913.06988228,8.293e-05,2]
[421430753,1777638441000,-117.47649756,8.292e-05,2]
[421430751,1777638441000,-500.0,8.292e-05,2]
[421430752,1777638441000,-500.0,8.292e-05,2]
[421430750,1777638441000,-500.0,8.292e-05,2]
[421430749,1777638441000,-168.20987145,8.292e-05,2]
[421430758,1777638441000,-500.0,8.292e-05,2]
[421430760,1777638442000,-10000.0,8.293e-05,2]
[421430761,1777638443000,-10000.0,8.293e-05,2]
[421430762,1777638444000,251.0,7.736e-05,2]
[421430763,1777638445000,-1530.63,8.219e-05,2]
[421430765,1777638445000,-8169.37,8.293e-05,2]
[421430764,1777638445000,-300.0,8.291e-05,2]
[421430766,1777638446000,-10000.0,8.293e-05,2]
[421430767,1777638449000,-8907.6274203,8.293e-05,2]
[421430768,1777638472000,100000.0,0.00030137,120]
[421430769,1777638473000,157.49171649,0.00025265,120]
[421430770,1777638482000,15126.72994443,8e-05,2]
[421430775,1777638547000,-98464.86073831,8.293e-05,2]
[421430774,1777638547000,-258.0,8.293e-05,2]
[421430772,1777638547000,-500.0,8.292e-05,2]
[421430773,1777638547000,-527.13926169,8.292e-05,2]
[421430771,1777638547000,-250.0,8.292e-05,2]
[421430776,1777638555000,-1823.240706,8.293e-05,2]
[421430777,1777638559000,-153668.8314,8.293e-05,2]
[421430778,1777638564000,-2435.32549832,8.293e-05,2]
[421430779,1777638568000,-21689.24940737,8.293e-05,2]
[421430780,1777638574000,-25196.18318,8.293e-05,2]
[421430781,1777638596000,166.32,6.834e-05,2]
[421430803,1777638631000,-448.71589931,8.292e-05,2]
[421430802,1777638631000,-30.21932918,8.292e-05,2]
[421430800,1777638631000,-300.0,8.291e-05,2]
[421430801,1777638631000,-241.0,8.292e-05,2]
[421430844,1777638632000,-5422.05161756,9.013e-05,2]
[421430840,1777638632000,-999.99,8.896e-05,2]
[421430842,1777638632000,-150.99,8.896e-05,2]
[421430829,1777638632000,-250.0,8.312e-05,2]
[421430836,1777638632000,-23135.07356803,8.5e-05,2]
[421430845,1777638632000,-2265.6426693,9.025e-05,2]
[421430835,1777638632000,-299.99,8.498e-05,2]
[421430833,1777638632000,-7320.14580088,8.498e-05,2]
[421430839,1777638632000,-2146.12,8.896e-05,2]
[421430838,1777638632000,-366.76288476,8.896e-05,2]
[421430843,1777638632000,-500.73992349,9.003e-05,2]
[421430848,1777638632000,-1428.38747117,9.112e-05,2]
[421430850,1777638632000,-2481.77914157,9.112e-05,2]
[421430846,1777638632000,-230.76,9.075e-05,2]
[421430841,1777638632000,-18592.41,8.896e-05,2]
[421430858,1777638632000,-665.36,9.121e-05,2]
[421430849,1777638632000,-200.0,9.112e-05,2]
[421430852,1777638632000,-743.50770149,9.112e-05,2]
[421430851,1777638632000,-721.12765535,9.112e-05,2]
[421430853,1777638632000,-174.61919141,9.112e-05,2]
[421430854,1777638632000,-151.0,9.112e-05,2]
[421430855,1777638632000,-209.40437684,9.112e-05,2]
[421430847,1777638632000,-578.20924308,9.112e-05,2]
[421430837,1777638632000,-230.76,8.598e-05,2]
[421430813,1777638632000,-500.0,8.292e-05,2]
[421430834,1777638632000,-9511.3,8.498e-05,2]
[421430860,1777638632000,-1680.0,9.121e-05,2]
[421430808,1777638632000,-675.352,8.292e-05,2]
[421430811,1777638632000,-105.57132918,8.292e-05,2]
[421430810,1777638632000,-300.0,8.292e-05,2]
[421430809,1777638632000,-45.71277151,8.292e-05,2]
[421430812,1777638632000,-44.42867082,8.292e-05,2]
[421430815,1777638632000,-500.0,8.292e-05,2]
[421430814,1777638632000,-501.3891383,8.292e-05,2]
[421430816,1777638632000,-500.0,8.292e-05,2]
[421430818,1777638632000,-500.0,8.292e-05,2]
[421430820,1777638632000,-500.0,8.292e-05,2]
[421430819,1777638632000,-500.0,8.292e-05,2]
[421430825,1777638632000,-355.43843049,8.292e-05,2]
[421430817,1777638632000,-500.0,8.292e-05,2]
[421430826,1777638632000,-515.33100783,8.293e-05,2]
[421430824,1777638632000,-291.69983619,8.292e-05,2]
[421430821,1777638632000,-500.0,8.292e-05,2]
[421430822,1777638632000,-500.0,8.292e-05,2]
[421430827,1777638632000,-1949.63817093,8.293e-05,2]
[421430823,1777638632000,-500.0,8.292e-05,2]
[421430828,1777638632000,-152288.57606742,8.293e-05,2]
[421430830,1777638632000,-34619.5668513,8.392e-05,2]
[421430831,1777638632000,-153.96205897,8.4e-05,2]
[421430832,1777638632000,-9999.99,8.453e-05,2]
[421430856,1777638632000,-279.9045709,9.112e-05,2]
[421430895,1777638632000,-151.0,0.0001,2]
[421430861,1777638632000,-255.0,9.121e-05,2]
[421430894,1777638632000,-151.0,0.0001,2]
[421430891,1777638632000,-151.0,0.0001,2]
[421430890,1777638632000,-500.0,0.0001,2]
[421430888,1777638632000,-500.0,0.0001,2]
[421430893,1777638632000,-151.0,0.0001,2]
[421430892,1777638632000,-615.46139803,0.0001,2]
[421430889,1777638632000,-151.0,0.0001,2]
[421430897,1777638632000,-151.0,0.0001,2]
[421430907,1777638632000,-151.0,0.0001,2]
[421430896,1777638632000,-151.0,0.0001,2]
[421430904,1777638632000,-151.0,0.0001,2]
[421430903,1777638632000,-500.0,0.0001,2]
[421430899,1777638632000,-151.0,0.0001,2]
[421430905,1777638632000,-500.0,0.0001,2]
[421430901,1777638632000,-500.0,0.0001,2]
[421430900,1777638632000,-151.0,0.0001,2]
[421430902,1777638632000,-151.0,0.0001,2]
[421430906,1777638632000,-500.0,0.0001,2]
[421430909,1777638632000,-151.0,0.0001,2]
[421430908,1777638632000,-500.0,0.0001,2]
[421430910,1777638632000,-500.0,0.0001,2]
[421430911,1777638632000,-151.0,0.0001,2]
[421430859,1777638632000,-420.0,9.121e-05,2]
[421430887,1777638632000,-500.0,0.0001,2]
[421430886,1777638632000,-500.0,0.0001,2]
[421430898,1777638632000,-151.0,0.0001,2]
[421430884,1777638632000,-500.0,0.0001,2]
[421430857,1777638632000,-248.0,9.12e-05,2]
[421430885,1777638632000,-500.0,0.0001,2]
[421430862,1777638632000,-300.0,9.121e-05,2]
[421430865,1777638632000,-250.0,9.121e-05,2]
[421430872,1777638632000,-200.0,9.66e-05,2]
[421430864,1777638632000,-250.0,9.121e-05,2]
[421430863,1777638632000,-300.45549685,9.121e-05,2]
[421430867,1777638632000,-153.94316657,9.222e-05,2]
[421430868,1777638632000,-1530.63,9.247e-05,2]
[421430871,1777638632000,-878.44139861,9.66e-05,2]
[421430870,1777638632000,-230.76,9.553e-05,2]
[421430869,1777638632000,-1000.0,9.444e-05,2]
[421430866,1777638632000,-151.0,9.167e-05,2]
[421430879,1777638632000,-200.0,0.0001,2]
[421430875,1777638632000,-151.0,0.0001,2]
[421430876,1777638632000,-151.0,0.0001,2]
[421430874,1777638632000,-217.15233878,9.66e-05,2]
[421430882,1777638632000,-500.0,0.0001,2]
[421430881,1777638632000,-500.0,0.0001,2]
[421430883,1777638632000,-500.0,0.0001,2]
[421430877,1777638632000,-151.0,0.0001,2]
[421430878,1777638632000,-151.0,0.0001,2]
[421430873,1777638632000,-181.08010149,9.66e-05,2]
[421430880,1777638632000,-500.0,0.0001,2]
[421430950,1777638633000,-350.0,0.00010366,2]
[421430952,1777638633000,-168.78,0.00010424,2]
[421430948,1777638633000,-500.0,0.00010356,2]
[421430946,1777638633000,-1057.42939,0.0001032,2]
[421430945,1777638633000,-150.0,0.00010313,2]
[421430939,1777638633000,-1057.42939,0.000103,2]
[421430942,1777638633000,-1057.42939,0.0001031,2]
[421430943,1777638633000,-1057.42939,0.0001031,2]
[421430953,1777638633000,-230.76,0.00010508,2]
[421430949,1777638633000,-518.13685465,0.00010356,2]
[421430944,1777638633000,-150.0,0.00010313,2]
[421430951,1777638633000,-168.78,0.00010424,2]
[421430964,1777638633000,-189.84773086,0.000108,2]
[421430954,1777638633000,-200.0,0.00010548,2]
[421430956,1777638633000,-194.72792766,0.00010756,2]
[421430955,1777638633000,-12244.9266118,0.000107,2]
[421430958,1777638633000,-216.83912454,0.000108,2]
[421430961,1777638633000,-150.0,0.000108,2]
[421430963,1777638633000,-150.0,0.000108,2]
[421430959,1777638633000,-150.0,0.000108,2]
[421430957,1777638633000,-150.0,0.000108,2]
[421430962,1777638633000,-150.0,0.000108,2]
[421430966,1777638633000,-150.0,0.000108,2]
[421430938,1777638633000,-181.70919437,0.00010274,2]
[421430947,1777638633000,-491.9060975,0.00010341,2]
[421430941,1777638633000,-1057.42939,0.0001031,2]
[421430913,1777638633000,-151.0,0.0001,2]
[421430936,1777638633000,-1530.63,0.00010274,2]
[421430976,1777638633000,-992.0,0.00011037,2]
[421430912,1777638633000,-500.0,0.0001,2]
[421430916,1777638633000,-500.0,0.0001,2]
[421430914,1777638633000,-500.0,0.0001,2]
[421430915,1777638633000,-151.0,0.0001,2]
[421430918,1777638633000,-500.0,0.0001,2]
[421430917,1777638633000,-151.0,0.0001,2]
[421430920,1777638633000,-151.0,0.0001,2]
[421430919,1777638633000,-151.0,0.0001,2]
[421430930,1777638633000,-250.0,0.00010038,2]
[421430929,1777638633000,-433.0,0.00010034,2]
[421430928,1777638633000,-2351.0,0.00010034,2]
[421430924,1777638633000,-150.0,0.0001,2]
[421430925,1777638633000,-230.76,0.00010031,2]
[421430922,1777638633000,-151.0,0.0001,2]
[421430926,1777638633000,-665.36,0.00010033,2]
[421430921,1777638633000,-500.0,0.0001,2]
[421430927,1777638633000,-587.0,0.00010034,2]
[421430923,1777638633000,-19064.02,0.0001,2]
[421430931,1777638633000,-250.0,0.00010038,2]
[421430932,1777638633000,-200.0,0.000102,2]
[421430933,1777638633000,-187.78006525,0.00010208,2]
[421430935,1777638633000,-166.32,0.00010251,2]
[421430934,1777638633000,-246.78608306,0.00010208,2]
[421430937,1777638633000,-564.44547167,0.00010274,2]
[421430940,1777638633000,-1057.4294,0.000103,2]
[421430968,1777638633000,-150.0,0.00010933,2]
[421430960,1777638633000,-150.0,0.000108,2]
[421430965,1777638633000,-150.0,0.000108,2]
[421430999,1777638633000,-150.0,0.000114,2]
[421431001,1777638633000,-150.0,0.000114,2]
[421431000,1777638633000,-150.0,0.000114,2]
[421431002,1777638633000,-150.0,0.000114,2]
[421431006,1777638633000,-150.0,0.00011467,2]
[421431003,1777638633000,-1000.0,0.000114,2]
[421431010,1777638633000,-150.0,0.000116,2]
[421431007,1777638633000,-211.26335975,0.00011494,2]
[421431004,1777638633000,-315.0,0.000114,2]
[421431005,1777638633000,-230.76,0.00011464,2]
[421431009,1777638633000,-166.66,0.00011507,2]
[421431008,1777638633000,-11185.92,0.00011507,2]
[421431012,1777638633000,-6820.891136,0.00011662,2]
[421431021,1777638633000,-3916.619045,0.0001176,2]
[421431011,1777638633000,-150.0,0.000116,2]
[421431018,1777638633000,-3126.00113627,0.0001176,2]
[421431015,1777638633000,-150.0,0.000117,2]
[421431016,1777638633000,-150.0,0.000117,2]
[421431020,1777638633000,-3852.155659,0.0001176,2]
[421431014,1777638633000,-840.94,0.000117,2]
[421431019,1777638633000,-2375.699509,0.0001176,2]
[421431013,1777638633000,-674.83,0.000117,2]
[421431017,1777638633000,-150.0,0.00011733,2]
[421431022,1777638633000,-1182.359177,0.0001176,2]
[421431024,1777638633000,-747.8093786,0.00011851,2]
[421430992,1777638633000,-150.0,0.000112,2]
[421430991,1777638633000,-217.0,0.00011114,2]
[421430967,1777638633000,-476.47549506,0.000109,2]
[421430997,1777638633000,-150.0,0.00011333,2]
[421430998,1777638633000,-3125.01018221,0.000114,2]
[421430969,1777638633000,-151.882,0.00010941,2]
[421430970,1777638633000,-1267.0,0.00010941,2]
[421430973,1777638633000,-166.66,0.00010959,2]
[421430974,1777638633000,-230.76,0.00010986,2]
[421430971,1777638633000,-1350.0,0.00010941,2]
[421430972,1777638633000,-665.36,0.00010945,2]
[421430975,1777638633000,-367.0,0.00011037,2]
[421430977,1777638633000,-736.0,0.00011037,2]
[421430980,1777638633000,-867.06021469,0.00011099,2]
[421430979,1777638633000,-203.46399359,0.00011096,2]
[421430978,1777638633000,-150.0,0.00011067,2]
[421430981,1777638633000,-867.06021463,0.00011099,2]
[421431023,1777638633000,-599.60298507,0.00011851,2]
[421430983,1777638633000,-211.26335975,0.00011099,2]
[421430982,1777638633000,-211.26335975,0.00011099,2]
[421430996,1777638633000,-201.93286099,0.00011304,2]
[421430994,1777638633000,-186.515228,0.00011277,2]
[421430993,1777638633000,-150.0,0.000112,2]
[421430995,1777638633000,-1530.63,0.00011301,2]
[421430988,1777638633000,-150.0,0.000111,2]
[421430990,1777638633000,-274.0,0.00011114,2]
[421430985,1777638633000,-211.26335975,0.00011099,2]
[421430987,1777638633000,-211.26335975,0.00011099,2]
[421430984,1777638633000,-211.26335975,0.00011099,2]
[421430986,1777638633000,-211.26335975,0.00011099,2]
[421430989,1777638633000,-150.0,0.000111,2]
[421431037,1777638634000,-501.12537306,0.00011973,2]
[421431033,1777638634000,-198.27674863,0.000119,2]
[421431044,1777638634000,-1060.86477171,0.00011999,3]
[421431034,1777638634000,-332.7222314,0.000119,2]
[421431032,1777638634000,-211.26335975,0.000119,2]
[421431026,1777638634000,-150.0,0.00011867,2]
[421431028,1777638634000,-151.0,0.0001188,2]
[421431031,1777638634000,-151.0,0.000119,2]
[421431029,1777638634000,-10000.0,0.000119,2]
[421431030,1777638634000,-4924.3359,0.000119,2]
[421431041,1777638634000,-355.6725925,0.0001199,2]
[421431027,1777638634000,-1858.56423517,0.0001188,10]
[421431035,1777638634000,-200.0,0.00011904,2]
[421431025,1777638634000,-209.40437684,0.00011852,2]
[421431040,1777638634000,-355.6725925,0.0001199,2]
[421431036,1777638634000,-230.76,0.00011941,2]
[421431049,1777638634000,-7920.94324843,0.00012,2]
[421431046,1777638634000,-1452259.53662806,0.00012,2]
[421431048,1777638634000,-31175.52811943,0.00012,2]
[421431051,1777638634000,-299.70681413,0.00012,2]
[421431047,1777638634000,-63237.70539167,0.00012,2]
[421431042,1777638634000,-355.6725925,0.0001199,2]
[421431052,1777638634000,-1652.648,0.00012,2]
[421431038,1777638634000,-471.10592492,0.00011973,2]
[421431050,1777638634000,-157741.04166694,0.00012,2]
[421431039,1777638634000,-500.47150084,0.00011973,2]
[421431045,1777638634000,-155.0,0.00011999,2]
[421431043,1777638634000,-1060.86477171,0.00011996,3]
[421431056,1777638639000,-278.30740097,0.00011099,2]
[421431059,1777638639000,-588.75281366,0.00011099,2]
[421431062,1777638639000,-1879.56894435,0.000119,2]
[421431061,1777638639000,-479.71340307,0.000119,2]
[421431065,1777638639000,-8785.12591168,0.00012,2]
[421431064,1777638639000,-2029.70228887,0.000119,2]
[421431067,1777638639000,-19564.02062096,0.00012,2]
[421431071,1777638639000,-380.52932165,0.00012,2]
[421431069,1777638639000,-48993.48432967,0.00012,2]
[421431070,1777638639000,-829.67010334,0.00012,2]
[421431072,1777638639000,-855.31470304,0.00012,2]
[421431060,1777638639000,-2084.00075751,0.0001176,2]
[421431063,1777638639000,-1179.64117371,0.000119,2]
[421431076,1777638640000,-766.21012183,0.00012,2]
[421431073,1777638640000,-304.0,0.00011099,2]
[421431074,1777638640000,-563.06021463,0.00011099,2]
[421431119,1777638640000,-1515.4,0.00012,2]
[421431120,1777638640000,-650.4944148,0.00012,2]
[421431075,1777638640000,-603.24978537,0.00012,2]
[421431130,1777638642000,-777.45,0.0001176,2]
[421431144,1777638645000,-1663.0,0.00010941,2]
[421431147,1777638645000,-72.52822008,0.00012,2]
[421431146,1777638645000,-2519.51767668,0.000119,2]
[421431145,1777638645000,-867.06021463,0.00011099,2]
[421431151,1777638646000,-775.81,0.00012,2]
[421431150,1777638646000,-575.425,0.00012,2]
[421431149,1777638646000,-5768.0,0.00012,2]
[421431148,1777638646000,-2235.64260084,0.00012,2]
[421431158,1777638662000,5000.01,8.193e-05,2]
[421431157,1777638662000,5000.01,8.193e-05,2]
[421431159,1777638662000,5000.01,8.193e-05,2]
[421431160,1777638662000,5000.01,8.193e-05,2]
[421431163,1777638663000,10000.01,8.193e-05,2]
[421431165,1777638663000,1200034.4783,8.193e-05,2]
[421431162,1777638663000,5000.01,8.193e-05,2]
[421431161,1777638663000,5000.01,8.193e-05,2]
[421431164,1777638663000,10000.01,8.193e-05,2]
[421431166,1777638684000,4158.2834,8.193e-05,2]
[421431168,1777638690000,3694.1717,8.193e-05,2]
[421431167,1777638690000,841.7266,8.193e-05,2]
[421431169,1777638700000,428.61372405,8.292e-05,2]
[421431170,1777638700000,160.5777318,8.292e-05,2]
[421431176,1777638748000,501.49121853,8.193e-05,2]
[421431177,1777638752000,11300.35187664,0.00030136,120]
[421431181,1777638818000,215.15562562,8.292e-05,2]
[421431182,1777638818000,104.43938241,8.292e-05,2]
[421431193,1777638971000,1008.81748156,0.00010599,3]
[421431194,1777639027000,542.63,4.654e-05,2]
[421431195,1777639028000,542.63,4.899e-05,2]
[421431196,1777639028000,542.63,5.143e-05,2]
[421431199,1777639028000,542.63,5.878e-05,2]
[421431198,1777639028000,542.63,5.633e-05,2]
[421431197,1777639028000,542.63,5.388e-05,2]
[421431203,1777639029000,542.63,6.858e-05,2]
[421431202,1777639029000,542.63,6.613e-05,2]
[421431201,1777639029000,542.63,6.368e-05,2]
[421431200,1777639029000,542.63,6.123e-05,2]
[421431204,1777639030000,542.63,7.103e-05,2]
[421431206,1777639030000,542.63,7.593e-05,2]
[421431205,1777639030000,542.63,7.348e-05,2]
[421431208,1777639030000,426.29,7.838e-05,2]
[421431209,1777639030000,542.63,8.083e-05,2]
[421431207,1777639030000,116.34,7.838e-05,2]
[421431210,1777639031000,542.63,8.328e-05,2]
[421431211,1777639031000,542.63,8.573e-05,2]
[421431212,1777639105000,500.0,8.312e-05,2]
[421431214,1777639172000,-300.00123974,8.703e-05,2]
[421431219,1777639270000,1955.36,8.219e-05,2]
[421431222,1777639271000,4349.73,8.138e-05,2]
[421431221,1777639271000,10000.01,8.138e-05,2]
[421431220,1777639271000,8044.65,8.138e-05,2]
[421431223,1777639279000,1000.0,8.122e-05,2]
[421431224,1777639315000,150.0,8.442e-05,2]
[421431229,1777639380000,437.34,8.223e-05,2]
[421431230,1777639382000,-190.32127941,8.68e-05,2]
[421431231,1777639384000,-187.44300001,8.68e-05,2]
[421431232,1777639386000,-59.57572058,8.68e-05,2]
[421431233,1777639386000,-240.42427942,8.691e-05,2]
[421431234,1777639451000,543.41,8.219e-05,2]
[421431235,1777639500000,150.0,8.388e-05,2]
[421431236,1777639517000,-204.57955928,8.647e-05,2]
[421431239,1777639526000,50000.0,0.000105,3]
[421431240,1777639526000,5657.22294545,0.000105,3]
[421431237,1777639526000,32918.10925293,0.000105,3]
[421431238,1777639526000,50000.0,0.000105,3]
[421431242,1777639545000,-250.51384717,8.647e-05,2]
[421431241,1777639545000,-473.18474072,8.647e-05,2]
[421431243,1777639565000,300000.0,0.00030137,120]
[421431246,1777639612000,377.86,8.084e-05,2]
[421431247,1777639626000,200.0,8.043e-05,2]
[421431258,1777639635000,-2727.96,8.81e-05,2]
[421431248,1777639635000,-3554.545193,8.625e-05,2]
[421431251,1777639635000,-500.0,8.691e-05,2]
[421431249,1777639635000,-319.8493573,8.669e-05,2]
[421431252,1777639635000,-500.0,8.739e-05,2]
[421431254,1777639635000,-352.03048628,8.739e-05,2]
[421431253,1777639635000,-194.37507972,8.739e-05,2]
[421431255,1777639635000,-1852.42,8.747e-05,2]
[421431256,1777639635000,-694.0,8.808e-05,2]
[421431260,1777639635000,-352.03048628,8.835e-05,2]
[421431250,1777639635000,-9.57572058,8.691e-05,2]
[421431261,1777639635000,-300.0,8.892e-05,2]
[421431257,1777639635000,-1200.0,8.809e-05,2]
[421431263,1777639635000,-1596.59,8.929e-05,2]
[421431265,1777639635000,-150.0,8.929e-05,2]
[421431262,1777639635000,-300.0,8.892e-05,2]
[421431264,1777639635000,-299.99,8.929e-05,2]
[421431266,1777639635000,-999.99,8.93e-05,2]
[421431268,1777639635000,-3557.88,8.93e-05,2]
[421431269,1777639635000,-582.45,8.93e-05,2]
[421431267,1777639635000,-9999.99,8.93e-05,2]
[421431270,1777639635000,-150.99,8.93e-05,2]
[421431259,1777639635000,-542.63,8.817e-05,2]
[421431271,1777639636000,-1213.68,8.93e-05,2]
[421431273,1777639636000,-21279.48185309,8.93e-05,2]
[421431272,1777639636000,-521.31,8.93e-05,2]
[421431274,1777639639000,-935.62843535,8.93e-05,2]
[421431276,1777639644000,-367.84439812,8.93e-05,2]
[421431277,1777639668000,180.46,7.188e-05,2]
[421431290,1777639831000,-2500.0,8.84e-05,2]
[421431292,1777639831000,-2417.03531344,8.93e-05,2]
[421431293,1777639831000,-220.06211169,8.93e-05,2]
[421431291,1777639831000,-1200.0,8.929e-05,2]
[421431295,1777639831000,-2927.49444221,8.93e-05,2]
[421431298,1777639831000,-721.12765535,8.935e-05,2]
[421431302,1777639831000,-174.61919141,8.935e-05,2]
[421431303,1777639831000,-150.0,8.938e-05,2]
[421431297,1777639831000,-578.20924308,8.935e-05,2]
[421431301,1777639831000,-209.40437684,8.935e-05,2]
[421431294,1777639831000,-176.01524314,8.93e-05,2]
[421431300,1777639831000,-151.0,8.935e-05,2]
[421431304,1777639831000,-16853.83027484,8.939e-05,2]
[421431299,1777639831000,-743.50770149,8.935e-05,2]
[421431296,1777639831000,-300.0,8.934e-05,2]
[421431305,1777639831000,-77495.82822326,8.94e-05,2]
[421431306,1777639832000,-7720.0,8.94e-05,2]
[421431307,1777639832000,-3882.2,8.94e-05,2]
[421431341,1777639840000,-542.63,9.307e-05,2]
[421431344,1777639840000,-500.0,9.452e-05,2]
[421431343,1777639840000,-150.0,9.447e-05,2]
[421431353,1777639840000,-422.0,9.452e-05,2]
[421431342,1777639840000,-150.0,9.386e-05,2]
[421431346,1777639840000,-500.0,9.452e-05,2]
[421431350,1777639840000,-422.0,9.452e-05,2]
[421431345,1777639840000,-500.0,9.452e-05,2]
[421431351,1777639840000,-422.0,9.452e-05,2]
[421431349,1777639840000,-422.0,9.452e-05,2]
[421431348,1777639840000,-150.0,9.452e-05,2]
[421431352,1777639840000,-422.0,9.452e-05,2]
[421431362,1777639840000,-500.0,9.452e-05,2]
[421431361,1777639840000,-422.0,9.452e-05,2]
[421431365,1777639840000,-422.0,9.452e-05,2]
[421431359,1777639840000,-422.0,9.452e-05,2]
[421431340,1777639840000,-1955.36,9.247e-05,2]
[421431347,1777639840000,-358.47608443,9.452e-05,2]
[421431339,1777639840000,-437.34,9.136e-05,2]
[421431322,1777639840000,-151.0,8.99e-05,2]
[421431336,1777639840000,-151.0,9.045e-05,2]
[421431354,1777639840000,-422.0,9.452e-05,2]
[421431320,1777639840000,-4988.33887674,8.94e-05,2]
[421431321,1777639840000,-176.01524314,8.94e-05,2]
[421431326,1777639840000,-5000.0,9e-05,2]
[421431330,1777639840000,-4043.52698694,9e-05,2]
[421431323,1777639840000,-5018.71878087,9e-05,2]
[421431329,1777639840000,-5956.46301306,9e-05,2]
[421431331,1777639840000,-267.0,9.039e-05,2]
[421431325,1777639840000,-5000.0,9e-05,2]
[421431327,1777639840000,-5000.0,9e-05,2]
[421431333,1777639840000,-829.67010334,9.04e-05,2]
[421431324,1777639840000,-5000.0,9e-05,2]
[421431328,1777639840000,-299.99,9e-05,2]
[421431332,1777639840000,-44682.95734273,9.04e-05,2]
[421431334,1777639840000,-380.52932165,9.04e-05,2]
[421431335,1777639840000,-3947.78644131,9.04e-05,2]
[421431337,1777639840000,-542.63,9.062e-05,2]
[421431338,1777639840000,-377.86,9.095e-05,2]
[421431357,1777639840000,-422.0,9.452e-05,2]
[421431383,1777639840000,-443.3120882,9.452e-05,2]
[421431355,1777639840000,-422.0,9.452e-05,2]
[421431392,1777639840000,-150.0,9.518e-05,2]
[421431393,1777639840000,-215.37855506,9.518e-05,2]
[421431391,1777639840000,-150.0,9.518e-05,2]
[421431390,1777639840000,-150.0,9.518e-05,2]
[421431380,1777639840000,-422.0,9.452e-05,2]
[421431387,1777639840000,-228.47012961,9.483e-05,2]
[421431389,1777639840000,-193.0,9.512e-05,2]
[421431397,1777639840000,-150.0,9.518e-05,2]
[421431396,1777639840000,-150.0,9.518e-05,2]
[421431399,1777639840000,-150.0,9.554e-05,2]
[421431401,1777639840000,-500.0,9.57e-05,2]
[421431395,1777639840000,-150.0,9.518e-05,2]
[421431398,1777639840000,-150.0,9.518e-05,2]
[421431400,1777639840000,-500.0,9.57e-05,2]
[421431405,1777639840000,-150.0,9.627e-05,2]
[421431404,1777639840000,-6250.7290166,9.609e-05,2]
[421431358,1777639840000,-422.0,9.452e-05,2]
[421431403,1777639840000,-437.34,9.593e-05,2]
[421431386,1777639840000,-812.10781881,9.483e-05,2]
[421431402,1777639840000,-150.0,9.591e-05,2]
[421431388,1777639840000,-181.08010149,9.483e-05,2]
[421431356,1777639840000,-422.0,9.452e-05,2]
[421431394,1777639840000,-150.0,9.518e-05,2]
[421431363,1777639840000,-422.0,9.452e-05,2]
[421431360,1777639840000,-422.0,9.452e-05,2]
[421431364,1777639840000,-500.0,9.452e-05,2]
[421431371,1777639840000,-500.0,9.452e-05,2]
[421431366,1777639840000,-500.0,9.452e-05,2]
[421431373,1777639840000,-422.0,9.452e-05,2]
[421431377,1777639840000,-422.0,9.452e-05,2]
[421431378,1777639840000,-422.0,9.452e-05,2]
[421431370,1777639840000,-500.0,9.452e-05,2]
[421431376,1777639840000,-422.0,9.452e-05,2]
[421431368,1777639840000,-422.0,9.452e-05,2]
[421431374,1777639840000,-500.0,9.452e-05,2]
[421431375,1777639840000,-505.10474493,9.452e-05,2]
[421431372,1777639840000,-500.0,9.452e-05,2]
[421431381,1777639840000,-422.0,9.452e-05,2]